fUSD/lending_fUSD_20260109
["ID","MTS","AMOUNT","RATE_DAILY","PERIOD"]
[401137902,1767965442707,-322.6107,0.00015539,2]
[401137903,1767965442728,-418.83219715,0.00015539,2]
[401137904,1767965442737,-1400.0,0.00015539,2]
[401137905,1767965442747,-250.0,0.00015539,2]
[401137906,1767965442759,-250.0,0.00015539,2]
[401137907,1767965442769,-553.64373807,0.00015539,2]
[401137908,1767965442778,-250.0,0.00015539,2]
[401137909,1767965442788,-5304.0814377,0.000157,2]
[401137910,1767965442798,-11790.4772152,0.00015713,2]
[401137911,1767965442807,-4216.0,0.00015851,2]
[401137912,1767965442817,-1000.30444663,0.00015858,2]
[401137914,1767965442827,-1405.73,0.00015907,2]
[401137915,1767965442837,-1000.0,0.00015918,2]
[401137916,1767965442847,-70116.01065003,0.00016,2]
[401137917,1767965442857,-574.12855637,0.00016087,2]
[401137918,1767965442867,-153.0,0.00016108,2]
[401137919,1767965442876,-150.0,0.00016108,2]
[401137921,1767965442886,-150.0,0.00016108,2]
[401137922,1767965442896,-150.0,0.00016108,2]
[401137923,1767965442906,-150.0,0.00016108,2]
[401137924,1767965442916,-150.0,0.00016108,2]
[401137925,1767965442925,-150.0,0.00016108,2]
[401137926,1767965442935,-150.0,0.00016108,2]
[401137927,1767965442944,-150.0,0.00016108,2]
[401137928,1767965442954,-2927.90722046,0.00016109,2]
[401137929,1767965442963,-20603.6464989,0.00016148,2]
[401137930,1767965442976,-2188.9248537,0.00016148,2]
[401137931,1767965442985,-92573.6523171,0.00016148,2]
[401137932,1767965442994,-468.70543887,0.00016192,2]
[401137933,1767965443003,-150.00000001,0.000162,2]
[401137934,1767965443012,-2992.92146389,0.000162,5]
[401137935,1767965443021,-179.26667024,0.00016239,2]
[401137936,1767965443030,-165.66167415,0.00016242,2]
[401137937,1767965443039,-468.70543887,0.00016247,2]
[401137938,1767965443049,-5304.0814377,0.0001625,2]
[401137939,1767965443058,-11790.4772152,0.0001626,2]
[401137940,1767965443067,-19528.79827464,0.0001628,2]
[401137941,1767965443077,-271.7085003,0.0001628,2]
[401137942,1767965443086,-2000.0,0.00016307,2]
[401137943,1767965443095,-200.0,0.00016307,2]
[401137944,1767965443105,-468.70543887,0.00016329,2]
[401137945,1767965443114,-150.0,0.00016329,2]
[401137946,1767965443124,-468.70543887,0.00016384,2]
[401137947,1767965443134,-208.0,0.00016384,2]
[401137948,1767965443143,-150.0,0.00016438,2]
[401137949,1767965443153,-3032.46125207,0.00016438,2]
[401137950,1767965443163,-150.0,0.00016438,2]
[401137951,1767965443173,-3687.88831868,0.00016438,2]
[401137952,1767965443182,-150.0,0.00016438,2]
[401137953,1767965443192,-10750.95626268,0.00016438,2]
[401137954,1767965443201,-150.0,0.00016438,2]
[401137955,1767965443212,-1932.74505509,0.00016438,2]
[401137956,1767965443225,-185.23706482,0.00016438,2]
[401137957,1767965443236,-200.0,0.00016438,2]
[401137958,1767965443246,-200.0,0.00016438,2]
[401137959,1767965443256,-164.42033085,0.00016438,2]
[401137960,1767965443266,-1269.83433761,0.00016438,2]
[401137961,1767965443276,-200.0,0.00016438,2]
[401137962,1767965443286,-1261.0,0.00016438,2]
[401137963,1767965443296,-200.0,0.00016438,2]
[401137964,1767965443306,-1261.0,0.00016438,2]
[401137965,1767965443315,-151.0,0.00016438,2]
[401137966,1767965443325,-151.0,0.00016438,2]
[401137967,1767965443334,-500.0,0.00016438,2]
[401137968,1767965443344,-500.0,0.00016438,2]
[401137969,1767965443354,-500.0,0.00016438,2]
[401137970,1767965443363,-151.0,0.00016438,2]
[401137971,1767965443373,-500.0,0.00016438,2]
[401137972,1767965443383,-500.0,0.00016438,2]
[401137973,1767965443392,-500.0,0.00016438,2]
[401137974,1767965443403,-629.05830386,0.00016438,2]
[401137975,1767965443412,-500.0,0.00016438,2]
[401137976,1767965443422,-500.0,0.00016438,2]
[401137977,1767965443431,-500.0,0.00016438,2]
[401137978,1767965443441,-500.0,0.00016438,2]
[401137979,1767965443450,-500.0,0.00016438,2]
[401137980,1767965443460,-500.0,0.00016438,2]
[401137981,1767965443473,-500.0,0.00016438,2]
[401137983,1767965443483,-500.0,0.00016438,2]
[401137985,1767965443492,-225.825426,0.00016438,2]
[401137986,1767965443502,-5342.20131033,0.00016438,2]
[401137987,1767965443513,-13703.83,0.00016438,2]
[401137988,1767965443523,-151.0,0.00016438,2]
[401137989,1767965443532,-151.0,0.00016438,2]
[401137990,1767965443541,-151.0,0.00016438,2]
[401137991,1767965443550,-151.0,0.00016438,2]
[401137992,1767965443560,-151.0,0.00016438,2]
[401137993,1767965443568,-151.0,0.00016438,2]
[401137994,1767965443578,-151.0,0.00016438,2]
[401137995,1767965443587,-151.0,0.00016438,2]
[401137996,1767965443596,-151.0,0.00016438,2]
[401137997,1767965443606,-151.0,0.00016438,2]
[401137998,1767965443615,-151.0,0.00016438,2]
[401137999,1767965443625,-151.0,0.00016438,2]
[401138000,1767965443635,-151.0,0.00016438,2]
[401138001,1767965443644,-151.0,0.00016438,2]
[401138002,1767965443655,-151.0,0.00016438,2]
[401138003,1767965443665,-151.0,0.00016438,2]
[401138004,1767965443675,-151.0,0.00016438,2]
[401138005,1767965443684,-151.0,0.00016438,2]
[401138006,1767965443693,-151.0,0.00016438,2]
[401138007,1767965443702,-151.0,0.00016438,2]
[401138008,1767965443713,-211.240473,0.00016438,2]
[401138009,1767965443727,-151.0,0.00016438,2]
[401138010,1767965443736,-151.0,0.00016438,2]
[401138011,1767965443745,-151.0,0.00016438,2]
[401138012,1767965443756,-198.085914,0.00016438,2]
[401138013,1767965443765,-232.002122,0.00016438,2]
[401138014,1767965443774,-468.70543887,0.00016438,2]
[401138015,1767965443784,-151.0,0.00016438,2]
[401138016,1767965443794,-151.0,0.00016438,2]
[401138017,1767965443804,-151.0,0.00016438,2]
[401138018,1767965443814,-151.0,0.00016438,2]
[401138019,1767965443823,-151.0,0.00016438,2]
[401138020,1767965443832,-151.0,0.00016438,2]
[401138021,1767965443841,-151.0,0.00016438,2]
[401138022,1767965443851,-151.0,0.00016438,2]
[401138023,1767965443860,-151.0,0.00016438,2]
[401138024,1767965443870,-151.0,0.00016438,2]
[401138025,1767965443880,-151.0,0.00016438,2]
[401138026,1767965443889,-151.0,0.00016438,2]
[401138027,1767965443899,-151.0,0.00016438,2]
[401138028,1767965443908,-151.0,0.00016438,2]
[401138029,1767965443919,-151.0,0.00016438,2]
[401138030,1767965443929,-151.0,0.00016438,2]
[401138031,1767965443939,-209.722163,0.00016438,2]
[401138032,1767965443948,-209.722163,0.00016438,2]
[401138033,1767965443958,-151.0,0.00016438,2]
[401138034,1767965443971,-209.722163,0.00016438,2]
[401138035,1767965443981,-151.0,0.00016438,2]
[401138036,1767965443990,-209.722163,0.00016438,2]
[401138037,1767965443999,-209.722163,0.00016438,2]
[401138038,1767965444009,-209.722163,0.00016438,2]
[401138039,1767965444018,-209.722163,0.00016438,2]
[401138040,1767965444029,-209.722163,0.00016438,2]
[401138041,1767965444038,-209.722163,0.00016438,2]
[401138042,1767965444048,-209.722163,0.00016438,2]
[401138043,1767965444057,-209.722163,0.00016438,2]
[401138044,1767965444067,-209.722163,0.00016438,2]
[401138045,1767965444076,-209.722163,0.00016438,2]
[401138046,1767965444086,-209.722163,0.00016438,2]
[401138047,1767965444095,-209.722163,0.00016438,2]
[401138050,1767965444105,-209.722163,0.00016438,2]
[401138051,1767965444391,-151.0,0.00016438,2]
[401138052,1767965444401,-151.0,0.00016438,2]
[401138053,1767965444411,-151.0,0.00016438,2]
[401138054,1767965444420,-151.0,0.00016438,2]
[401138055,1767965444430,-151.0,0.00016438,2]
[401138056,1767965444440,-151.0,0.00016438,2]
[401138057,1767965444450,-151.0,0.00016438,2]
[401138058,1767965444460,-151.0,0.00016438,2]
[401138059,1767965444471,-151.0,0.00016438,2]
[401138060,1767965444480,-283.734245,0.00016438,2]
[401138061,1767965444489,-151.0,0.00016438,2]
[401138062,1767965444499,-251.524176,0.00016438,2]
[401138063,1767965444508,-1725.162542,0.00016438,2]
[401138064,1767965444517,-1725.162542,0.00016438,2]
[401138065,1767965444527,-1725.162542,0.00016438,2]
[401138066,1767965444536,-1725.162542,0.00016438,2]
[401138067,1767965444546,-165.15,0.0001644,2]
[401138068,1767965444555,-168.0,0.00016455,2]
[401138069,1767965444565,-152.0,0.0001646,4]
[401138070,1767965444575,-300.0,0.00016468,2]
[401138071,1767965444584,-300.0,0.00016468,2]
[401138072,1767965444593,-300.0,0.00016468,2]
[401138073,1767965444603,-300.0,0.00016468,2]
[401138074,1767965444612,-627.0,0.00016469,2]
[401138075,1767965444621,-1266.0,0.00016469,2]
[401138076,1767965444630,-1202.14,0.00016469,2]
[401138077,1767965444639,-916.599,0.00016469,2]
[401138078,1767965444648,-4819.0,0.00016469,2]
[401138079,1767965444658,-1312.0,0.00016469,2]
[401138080,1767965444668,-2459.15,0.00016469,2]
[401138081,1767965444678,-1330.0,0.00016469,2]
[401138082,1767965444687,-168.0,0.00016484,2]
[401138083,1767965444697,-736.0,0.00016492,2]
[401138084,1767965444707,-300.0,0.00016497,2]
[401138085,1767965444718,-200.0,0.00016498,2]
[401138086,1767965444733,-200.0,0.00016498,2]
[401138087,1767965444743,-171.0,0.00016498,2]
[401138088,1767965444752,-194.254,0.00016498,2]
[401138089,1767965444763,-250.0,0.00016498,2]
[401138090,1767965444773,-210.242,0.00016498,2]
[401138091,1767965444782,-226.508,0.00016498,2]
[401138092,1767965444792,-250.0,0.00016498,2]
[401138093,1767965444802,-157.382,0.00016498,2]
[401138094,1767965444812,-243.342,0.00016498,2]
[401138095,1767965444821,-190.931,0.00016498,2]
[401138096,1767965444831,-163.819,0.00016498,2]
[401138097,1767965444840,-211.969,0.00016498,2]
[401138098,1767965444849,-250.0,0.00016498,2]
[401138099,1767965444859,-169.0,0.00016498,2]
[401138100,1767965444868,-229.605,0.00016498,2]
[401138101,1767965444878,-1000.0,0.00016515,2]
[401138102,1767965444888,-468.70543887,0.00016521,2]
[401138103,1767965444898,-168.0,0.0001653,2]
[401138104,1767965444907,-1100.0,0.00016542,2]
[401138105,1767965444916,-246.9,0.00016549,2]
[401138106,1767965444926,-208.0,0.00016552,2]
[401138107,1767965444937,-468.70543887,0.00016575,2]
[401138108,1767965444946,-1405.73,0.00016598,2]
[401138109,1767965444955,-152.0,0.000166,5]
[401138110,1767965444965,-200.0,0.00016602,2]
[401138111,1767965444978,-200.0,0.00016602,2]
[401138112,1767965444988,-200.0,0.00016602,2]
[401138113,1767965444998,-200.0,0.00016602,2]
[401138114,1767965445007,-823.0,0.00016633,2]
[401138115,1767965445016,-595.37131296,0.00016635,2]
[401138116,1767965445026,-166.84,0.00016638,2]
[401138117,1767965445035,-468.70543887,0.00016658,2]
[401138118,1767965445045,-246.9,0.00016681,2]
[401138119,1767965445054,-182.1,0.00016688,2]
[401138120,1767965445064,-159.89,0.00016712,2]
[401138121,1767965445073,-468.70543887,0.00016712,2]
[401138122,1767965445083,-152.0,0.00016741,6]
[401138123,1767965445094,-3292.0,0.00016764,2]
[401138124,1767965445103,-468.70543887,0.00016767,2]
[401138125,1767965445113,-200.0,0.00016768,2]
[401138126,1767965445123,-200.0,0.00016768,2]
[401138127,1767965445132,-200.0,0.00016768,2]
[401138128,1767965445142,-200.0,0.00016768,2]
[401138129,1767965445152,-179.7,0.00016772,2]
[401138130,1767965445162,-5304.0814377,0.000168,2]
[401138131,1767965445171,-11790.4772152,0.00016807,2]
[401138132,1767965445181,-246.9,0.00016813,2]
[401138133,1767965445191,-208.0,0.00016833,2]
[401138134,1767965445200,-202.0,0.00016841,2]
[401138136,1767965445210,-468.70543887,0.00016849,2]
[401138137,1767965445222,-359.08313245,0.00016879,2]
[401138138,1767965445231,-300.0,0.00016879,2]
[401138139,1767965445242,-300.0,0.00016879,2]
[401138140,1767965445252,-100000.0,0.0001688,2]
[401138141,1767965445261,-151.0,0.0001688,2]
[401138142,1767965445272,-151.0,0.0001688,2]
[401138143,1767965445281,-201.992172,0.0001688,2]
[401138144,1767965445291,-151.0,0.0001688,2]
[401138145,1767965445301,-151.0,0.0001688,2]
[401138146,1767965445310,-207.468592,0.0001688,2]
[401138147,1767965445320,-151.0,0.0001688,2]
[401138148,1767965445331,-151.0,0.0001688,2]
[401138149,1767965445341,-182.34291,0.0001688,2]
[401138150,1767965445351,-151.0,0.0001688,2]
[401138151,1767965445360,-151.0,0.0001688,2]
[401138152,1767965445369,-209.722163,0.0001688,2]
[401138153,1767965445378,-209.722163,0.0001688,2]
[401138154,1767965445387,-209.722163,0.0001688,2]
[401138155,1767965445395,-209.72216,0.0001688,2]
[401138156,1767965445404,-151.0,0.0001688,2]
[401138157,1767965445413,-151.0,0.0001688,2]
[401138158,1767965445423,-152.0,0.00016881,7]
[401138159,1767965445431,-162.0,0.000169,2]
[401138160,1767965445441,-468.70543887,0.00016904,2]
[401138161,1767965445450,-334.5472959,0.00016908,2]
[401138162,1767965445460,-208.0,0.00016933,2]
[401138163,1767965445473,-200.0,0.00016936,2]
[401138164,1767965445483,-200.0,0.00016936,2]
[401138165,1767965445492,-156.12089879,0.00016936,2]
[401138166,1767965445502,-208.0,0.00016942,2]
[401138167,1767965445512,-246.9,0.00016945,2]
[401138168,1767965445522,-208.0,0.00016953,2]
[401138169,1767965445531,-166.66,0.0001697,2]
[401138170,1767965445541,-50546.06,0.00016986,2]
[401138171,1767965445550,-150.0,0.00016995,2]
[401138172,1767965445560,-3503.53,0.00017,2]
[401138173,1767965445569,-3000.0,0.00017,2]
[401138174,1767965445579,-3072.0,0.00017,2]
[401138175,1767965445588,-1005.0,0.00017,2]
[401138176,1767965445598,-2605.0,0.00017,2]
[401138177,1767965445607,-1000.0,0.00017,2]
[401138178,1767965445617,-11428.48557949,0.00017,2]
[401138179,1767965445626,-2000.0,0.00017,2]
[401138180,1767965445636,-174.739932,0.00017,2]
[401138181,1767965445646,-174.739932,0.00017,2]
[401138182,1767965445656,-174.739932,0.00017,2]
[401138183,1767965445666,-174.739932,0.00017,2]
[401138184,1767965445675,-250.0,0.00017,2]
[401138185,1767965445685,-151.0,0.00017,2]
[401138186,1767965445695,-151.0,0.00017,2]
[401138187,1767965445705,-151.0,0.00017,2]
[401138188,1767965445716,-1725.162542,0.00017,2]
[401138189,1767965445732,-1725.162542,0.00017,2]
[401138190,1767965445742,-1725.162542,0.00017,2]
[401138191,1767965445753,-1725.162542,0.00017,2]
[401138193,1767965445763,-152.0,0.00017021,8]
[401138195,1767965445773,-232.0,0.00017023,2]
[401138197,1767965445783,-168.0,0.00017055,2]
[401138199,1767965445792,-179.26667024,0.0001707,2]
[401138201,1767965445802,-165.66167415,0.00017071,2]
[401138202,1767965445811,-246.9,0.00017077,2]
[401138203,1767965445820,-208.0,0.00017078,2]
[401138204,1767965445829,-208.0,0.00017092,2]
[401138205,1767965445838,-200.0,0.00017105,2]
[401138206,1767965445847,-200.0,0.00017105,2]
[401138207,1767965445857,-168.0,0.00017109,2]
[401138208,1767965445866,-1000.0,0.00017112,2]
[401138209,1767965445875,-152.0,0.00017162,9]
[401138211,1767965445884,-617.40005154,0.00017183,2]
[401138213,1767965445893,-452.37,0.00017201,2]
[401138214,1767965445903,-1000.0,0.00017201,2]
[401138215,1767965445912,-246.9,0.00017209,2]
[401138216,1767965445922,-283.0,0.00017223,2]
[401138217,1767965445931,-152.0,0.00017302,10]
[401138218,1767965445941,-159.10718443,0.00017314,2]
[401138219,1767965445952,-246.9,0.0001734,2]
[401138220,1767965445963,-5304.0814377,0.0001735,2]
[401138221,1767965445975,-11790.4772152,0.00017353,2]
[401138222,1767965445985,-166.84,0.00017358,2]
[401138223,1767965445995,-182.1,0.00017383,2]
[401138224,1767965446004,-1100.0,0.00017413,2]
[401138225,1767965446014,-208.0,0.0001742,2]
[401138226,1767965446024,-179.7,0.00017436,2]
[401138227,1767965446034,-152.0,0.00017443,11]
[401138228,1767965446043,-168.0,0.00017455,2]
[401138229,1767965446053,-246.9,0.00017472,2]
[401138230,1767965446063,-168.0,0.00017544,2]
[401138231,1767965446072,-208.0,0.00017559,2]
[401138232,1767965446082,-208.0,0.00017569,2]
[401138233,1767965446092,-152.0,0.00017583,12]
[401138234,1767965446101,-278.08,0.000176,2]
[401138235,1767965446110,-246.9,0.00017604,2]
[401138236,1767965446120,-2493.79008389,0.00017673,2]
[401138237,1767965446130,-10000.0,0.00017708,2]
[401138238,1767965446139,-1000.0,0.00017709,2]
[401138239,1767965446149,-152.0,0.00017724,13]
[401138240,1767965446159,-482.82,0.00017727,2]
[401138241,1767965446169,-482.82,0.00017727,2]
[401138242,1767965446178,-482.82,0.00017727,2]
[401138243,1767965446188,-482.82,0.00017727,2]
[401138244,1767965446199,-640.24385345,0.00017731,2]
[401138245,1767965446209,-246.9,0.00017736,2]
[401138246,1767965446218,-200.35779431,0.00017808,2]
[401138247,1767965446227,-168.0,0.00017817,2]
[401138248,1767965446237,-759.67,0.00017831,2]
[401138249,1767965446247,-21488.0838136,0.00017839,2]
[401138250,1767965446256,-152.0,0.00017864,14]
[401138251,1767965446265,-246.9,0.00017868,2]
[401138252,1767965446274,-257.7711616,0.00017898,2]
[401138253,1767965446283,-579.55303214,0.00017898,2]
[401138254,1767965446293,-2054.59846741,0.00017898,2]
[401138255,1767965446303,-2054.59846736,0.00017898,2]
[401138256,1767965446312,-2054.59846736,0.00017899,2]
[401138257,1767965446322,-257.77116159,0.00017899,2]
[401138258,1767965446331,-579.55303213,0.00017899,2]
[401138259,1767965446341,-2054.59846736,0.00017899,2]
[401138260,1767965446351,-2054.59846736,0.000179,2]
[401138261,1767965446361,-9437.31173742,0.000179,3]
[401138262,1767965446371,-165.66167415,0.000179,2]
[401138263,1767965446380,-11790.4772152,0.000179,2]
[401138264,1767965446389,-2645.9780766,0.000179,2]
[401138265,1767965446399,-5304.0814377,0.000179,2]
[401138266,1767965446408,-2645.97807646,0.000179,2]
[401138267,1767965446418,-2645.97807646,0.000179,2]
[401138268,1767965446427,-2645.97807646,0.000179,2]
[401138269,1767965446436,-2645.97807646,0.000179,2]
[401138270,1767965446446,-179.26667024,0.000179,2]
[401138271,1767965446456,-2645.97807646,0.000179,2]
[401138272,1767965446466,-2645.97807646,0.000179,2]
[401138273,1767965446479,-2645.97807646,0.000179,2]
[401138274,1767965446488,-2645.97807646,0.000179,2]
[401138275,1767965446497,-2645.97807646,0.000179,2]
[401138276,1767965446507,-2645.97807646,0.000179,2]
[401138277,1767965446516,-2645.97807646,0.000179,2]
[401138278,1767965446525,-2645.97807646,0.000179,2]
[401138279,1767965446534,-2645.97807646,0.000179,2]
[401138280,1767965446544,-2645.97807646,0.000179,2]
[401138281,1767965446553,-257.77116159,0.000179,2]
[401138282,1767965446562,-2645.97807646,0.000179,2]
[401138283,1767965446572,-2645.97807646,0.000179,2]
[401138284,1767965446581,-2645.97807646,0.000179,2]
[401138285,1767965446591,-2645.97807646,0.000179,2]
[401138286,1767965446600,-4834.31017102,0.000179,2]
[401138287,1767965446610,-2645.97807646,0.000179,2]
[401138288,1767965446619,-579.55303213,0.000179,2]
[401138289,1767965446629,-2054.59846736,0.000179,2]
[401138290,1767965446638,-12197.31493556,0.000179,2]
[401138291,1767965446647,-500.0,0.000179,2]
[401138292,1767965446656,-500.0,0.000179,2]
[401138293,1767965446666,-500.0,0.000179,2]
[401138294,1767965446675,-500.0,0.000179,2]
[401138295,1767965446684,-500.0,0.000179,2]
[401138296,1767965446694,-363.73506313,0.000179,2]
[401138297,1767965446704,-168.0,0.00017939,2]
[401138298,1767965446717,-168.0,0.00017941,2]
[401138299,1767965446730,-500.0,0.00017973,2]
[401138300,1767965446740,-279.31517583,0.00017973,2]
[401138301,1767965446750,-500.0,0.00017973,2]
[401138302,1767965446762,-500.0,0.00017973,2]
[401138303,1767965446772,-500.0,0.00017973,2]
[401138304,1767965446781,-500.0,0.00017973,2]
[401138305,1767965446791,-500.0,0.00017973,2]
[401138306,1767965446801,-500.0,0.00017973,2]
[401138307,1767965446811,-500.0,0.00017973,2]
[401138308,1767965446820,-500.0,0.00017973,2]
[401138309,1767965446829,-500.0,0.00017973,2]
[401138310,1767965446839,-500.0,0.00017973,2]
[401138311,1767965446848,-609.94892981,0.00017973,2]
[401138312,1767965446857,-500.0,0.00017973,2]
[401138313,1767965446867,-286.84842062,0.00017973,2]
[401138314,1767965446876,-500.0,0.00017973,2]
[401138315,1767965446885,-500.0,0.00017973,2]
[401138316,1767965446895,-500.0,0.00017973,2]
[401138317,1767965446904,-195.06667749,0.00017973,2]
[401138318,1767965446914,-515.27642925,0.00017973,2]
[401138319,1767965446923,-578.02071049,0.00017973,2]
[401138320,1767965446933,-500.0,0.00017973,2]
[401138321,1767965446943,-500.0,0.00017973,2]
[401138322,1767965446952,-500.0,0.00017973,2]
[401138323,1767965446962,-501.05787152,0.00017973,2]
[401138324,1767965446972,-500.0,0.00017973,2]
[401138325,1767965446986,-500.0,0.00017973,2]
[401138326,1767965446995,-500.0,0.00017973,2]
[401138327,1767965447005,-500.0,0.00017973,2]
[401138328,1767965447015,-500.0,0.00017973,2]
[401138329,1767965447024,-500.0,0.00017973,2]
[401138330,1767965447034,-500.0,0.00017973,2]
[401138331,1767965447043,-500.0,0.00017973,2]
[401138332,1767965447052,-500.0,0.00017973,2]
[401138333,1767965447062,-500.0,0.00017973,2]
[401138334,1767965447074,-500.0,0.00017973,2]
[401138335,1767965447084,-500.0,0.00017973,2]
[401138336,1767965447095,-500.0,0.00017973,2]
[401138337,1767965447104,-500.0,0.00017973,2]
[401138338,1767965447114,-570.66707455,0.00017973,2]
[401138339,1767965447124,-500.0,0.00017973,2]
[401138340,1767965447134,-500.0,0.00017973,2]
[401138341,1767965447143,-168.53464326,0.00017973,2]
[401138342,1767965447153,-150.18655509,0.00017973,2]
[401138343,1767965447163,-500.0,0.00017973,2]
[401138344,1767965447173,-500.0,0.00017973,2]
[401138345,1767965447186,-546.15438132,0.00017973,2]
[401138346,1767965447195,-398.03125352,0.00017973,2]
[401138347,1767965447205,-500.0,0.00017973,2]
[401138348,1767965447215,-500.0,0.00017973,2]
[401138349,1767965447227,-500.0,0.00017973,2]
[401138350,1767965447236,-500.0,0.00017973,2]
[401138351,1767965447245,-500.0,0.00017973,2]
[401138352,1767965447255,-500.0,0.00017973,2]
[401138353,1767965447266,-151.0,0.00017973,2]
[401138354,1767965447276,-151.0,0.00017973,2]
[401138355,1767965447286,-151.0,0.00017973,2]
[401138356,1767965447295,-151.0,0.00017973,2]
[401138357,1767965447305,-151.0,0.00017973,2]
[401138358,1767965447315,-185.94513151,0.00017973,2]
[401138359,1767965447324,-356.78249281,0.0001799,2]
[401138360,1767965447333,-356.78249281,0.0001799,2]
[401138361,1767965447343,-425.0,0.00017996,2]
[401138362,1767965447353,-1066.30640652,0.00017997,5]
[401138363,1767965447362,-150.0,0.00017997,2]
[401138364,1767965447372,-166.41218394,0.00017997,2]
[401138365,1767965447385,-150.0,0.00017997,2]
[401138366,1767965447394,-57925.44901246,0.00017998,2]
[401138367,1767965447404,-254981.84093906,0.00017998,2]
[401138368,1767965447413,-869489.49144621,0.00017998,2]
[401138369,1767965447423,-174.739932,0.00017998,2]
[401138370,1767965447433,-174.739932,0.00017998,2]
[401138371,1767965447443,-174.739932,0.00017998,2]
[401138372,1767965447452,-174.739932,0.00017998,2]
[401138373,1767965447461,-174.739932,0.00017998,2]
[401138374,1767965447474,-174.739932,0.00017998,2]
[401138375,1767965447483,-174.739932,0.00017998,2]
[401138376,1767965447493,-174.739932,0.00017998,2]
[401138377,1767965447502,-174.739932,0.00017998,2]
[401138378,1767965447512,-174.739932,0.00017998,2]
[401138379,1767965447521,-174.739932,0.00017998,2]
[401138380,1767965447531,-174.739932,0.00017998,2]
[401138381,1767965447540,-321.619669,0.00017998,2]
[401138382,1767965447550,-151.0,0.00017998,2]
[401138383,1767965447560,-151.0,0.00017998,2]
[401138384,1767965447569,-151.0,0.00017998,2]
[401138385,1767965447579,-151.0,0.00017998,2]
[401138386,1767965447592,-151.0,0.00017998,2]
[401138387,1767965447602,-151.0,0.00017998,2]
[401138388,1767965447611,-151.0,0.00017998,2]
[401138389,1767965447621,-151.0,0.00017998,2]
[401138390,1767965447630,-1725.162542,0.00017998,2]
[401138391,1767965447640,-1725.162542,0.00017998,2]
[401138392,1767965447649,-1725.162542,0.00017998,2]
[401138393,1767965447659,-1725.162542,0.00017998,2]
[401138394,1767965447669,-1725.162542,0.00017998,2]
[401138395,1767965447678,-1725.162542,0.00017998,2]
[401138396,1767965447688,-1725.162542,0.00017998,2]
[401138397,1767965447697,-1725.162542,0.00017998,2]
[401138398,1767965447706,-1725.162542,0.00017998,2]
[401138399,1767965447716,-11541.22312161,0.00017999,2]
[401138400,1767965447731,-953838.93417819,0.00018,2]
[401138401,1767965447828,-3816.26585088,0.00018,2]
[401138402,1767965447839,-15153.02829593,0.00018,2]
[401138403,1767965447908,-3013.09883196,0.00018,2]
[401138404,1767965447919,-453.15824002,0.00018,2]
[401138405,1767965447931,-447.1571751,0.00018,2]
[401138406,1767965447943,-303.94,0.00018,2]
[401138407,1767965447998,-1725.162542,0.00017998,2]
[401138408,1767965448008,-371.71604478,0.00018,2]
[401138409,1767965449972,-151.0,0.00016438,2]
[401138410,1767965449985,-305.538694,0.00016438,2]
[401138411,1767965449994,-3468.0,0.00016469,2]
[401138412,1767965450004,-305.538694,0.00017,2]
[401138413,1767965450014,-1725.162542,0.00017998,2]
[401138414,1767965450023,-1725.16253379,0.00017998,2]
[401138415,1767965450032,-305.538694,0.00017998,2]